[Event "Titled Tuesday Blitz June 6 Late 2023"]
[White "Mortazavi, Ali"]
[Black "Rustemov, Alexander"]
[WhiteFideId "401323"]
[BlackFideId "4119002"]
[WhiteElo "2339"]
[BlackElo "2841"]
[Result "1-0"]
[Round "6"]
[TimeControl "180+2"]
[Date "2023.06.07"]
[WhiteClock "0:00:24"]
[BlackClock "0:00:03"]
[Board "39"]

1. Nf3 {[%clk 0:03:00]}  d5 {[%clk 0:02:51]} 2. g3 {[%clk 0:03:00]}  Bf5 {[%clk 0:02:49]} 3. Bg2 {[%clk 0:03:01]}  e6 {[%clk 0:02:47]} 4. O-O {[%clk 0:03:02]}  Nf6 {[%clk 0:02:46]} 5. d3 {[%clk 0:03:01]}  c6 {[%clk 0:02:46]} 6. c4 {[%clk 0:02:59]}  dxc4 {[%clk 0:02:47]} 7. dxc4 {[%clk 0:02:58]}  Qxd1 {[%clk 0:02:47]} 8. Rxd1 {[%clk 0:02:59]}  Bc2 {[%clk 0:02:48]} 9. Rf1 {[%clk 0:02:57]}  Nbd7 {[%clk 0:02:46]} 10. Bf4 {[%clk 0:02:56]}  a5 {[%clk 0:01:38]} 11. Rc1 {[%clk 0:02:52]}  Bg6 {[%clk 0:01:36]} 12. Nc3 {[%clk 0:02:50]}  Be7 {[%clk 0:01:33]} 13. Ne5 {[%clk 0:02:24]}  O-O {[%clk 0:01:19]} 14. Nxg6 {[%clk 0:02:23]}  hxg6 {[%clk 0:01:19]} 15. Rd1 {[%clk 0:02:22]}  Rfd8 {[%clk 0:01:17]} 16. Na4 {[%clk 0:01:46]}  Nc5 {[%clk 0:01:11]} 17. Nxc5 {[%clk 0:01:40]}  Bxc5 {[%clk 0:01:12]} 18. Bc7 {[%clk 0:01:40]}  Rdc8 {[%clk 0:01:02]} 19. Bf4 {[%clk 0:01:40]}  Kf8 {[%clk 0:01:00]} 20. h3 {[%clk 0:01:35]}  Ke7 {[%clk 0:00:59]} 21. g4 {[%clk 0:01:34]}  Rd8 {[%clk 0:00:55]} 22. Kf1 {[%clk 0:01:32]}  a4 {[%clk 0:00:48]} 23. e3 {[%clk 0:01:30]}  Nd7 {[%clk 0:00:46]} 24. Ke2 {[%clk 0:01:22]}  a3 {[%clk 0:00:45]} 25. b3 {[%clk 0:01:22]}  Bb4 {[%clk 0:00:40]} 26. Bc7 {[%clk 0:01:19]}  Rdc8 {[%clk 0:00:40]} 27. Bg3 {[%clk 0:01:20]}  Nc5 {[%clk 0:00:40]} 28. Bd6+ {[%clk 0:01:17]}  Ke8 {[%clk 0:00:39]} 29. e4 {[%clk 0:01:10]}  Na6 {[%clk 0:00:35]} 30. e5 {[%clk 0:01:08]}  Bxd6 {[%clk 0:00:34]} 31. Rxd6 {[%clk 0:01:06]}  Nb4 {[%clk 0:00:31]} 32. Kd2 {[%clk 0:01:00]}  Rab8 {[%clk 0:00:29]} 33. c5 {[%clk 0:00:55]}  b6 {[%clk 0:00:27]} 34. cxb6 {[%clk 0:00:52]}  Rxb6 {[%clk 0:00:28]} 35. Kc3 {[%clk 0:00:53]}  Nd5+ {[%clk 0:00:27]} 36. Kd2 {[%clk 0:00:46]}  g5 {[%clk 0:00:28]} 37. Bxd5 {[%clk 0:00:44]}  exd5 {[%clk 0:00:26]} 38. Rc1 {[%clk 0:00:43]}  Ke7 {[%clk 0:00:26]} 39. Kd3 {[%clk 0:00:40]}  f6 {[%clk 0:00:26]} 40. Kd4 {[%clk 0:00:37]}  Rb4+ {[%clk 0:00:19]} 41. Kc5 {[%clk 0:00:38]}  Rb5+ {[%clk 0:00:17]} 42. Kd4 {[%clk 0:00:38]}  Rb4+ {[%clk 0:00:15]} 43. Kc3 {[%clk 0:00:37]}  Re4 {[%clk 0:00:12]} 44. Kd3 {[%clk 0:00:35]}  Rxe5 {[%clk 0:00:12]} 45. Rdxc6 {[%clk 0:00:35]}  Rxc6 {[%clk 0:00:11]} 46. Rxc6 {[%clk 0:00:36]}  Re1 {[%clk 0:00:11]} 47. Ra6 {[%clk 0:00:35]}  Rh1 {[%clk 0:00:11]} 48. Rxa3 {[%clk 0:00:34]}  Rxh3+ {[%clk 0:00:12]} 49. Kd4 {[%clk 0:00:35]}  Rf3 {[%clk 0:00:12]} 50. Kxd5 {[%clk 0:00:32]}  Kf7 {[%clk 0:00:10]} 51. Ra7+ {[%clk 0:00:31]}  Kg6 {[%clk 0:00:10]} 52. b4 {[%clk 0:00:31]}  Rxf2 {[%clk 0:00:10]} 53. b5 {[%clk 0:00:31]}  Rb2 {[%clk 0:00:09]} 54. a4 {[%clk 0:00:30]}  f5 {[%clk 0:00:09]} 55. gxf5+ {[%clk 0:00:30]}  Kxf5 {[%clk 0:00:10]} 56. Rxg7 {[%clk 0:00:30]}  Rb4 {[%clk 0:00:09]} 57. Rf7+ {[%clk 0:00:29]}  Kg6 {[%clk 0:00:09]} 58. Ra7 {[%clk 0:00:29]}  g4 {[%clk 0:00:10]} 59. Kc5 {[%clk 0:00:29]}  Rb1 {[%clk 0:00:09]} 60. Ra8 {[%clk 0:00:29]}  Kg7 {[%clk 0:00:09]} 61. Ra7+ {[%clk 0:00:27]}  Kg6 {[%clk 0:00:09]} 62. Ra6+ {[%clk 0:00:27]}  Kg7 {[%clk 0:00:09]} 63. Rd6 {[%clk 0:00:25]}  Ra1 {[%clk 0:00:08]} 64. Kb4 {[%clk 0:00:24]}  Rb1+ {[%clk 0:00:08]} 65. Ka5 {[%clk 0:00:24]}  Rb3 {[%clk 0:00:08]} 66. Rd4 {[%clk 0:00:23]}  g3 {[%clk 0:00:04]} 67. Rg4+ {[%clk 0:00:23]}  Kf6 {[%clk 0:00:05]} 68. b6 {[%clk 0:00:23]}  Kf5 {[%clk 0:00:05]} 69. Rg8 {[%clk 0:00:23]}  Kf4 {[%clk 0:00:05]} 70. Ka6 {[%clk 0:00:24]}  Kf3 {[%clk 0:00:05]} 71. a5 {[%clk 0:00:24]}  g2 {[%clk 0:00:05]} 72. b7 {[%clk 0:00:24]}  Kf2 {[%clk 0:00:05]} 73. Ka7 {[%clk 0:00:24]}  Rb5 {[%clk 0:00:04]} 74. a6 {[%clk 0:00:24]}  Rg5 {[%clk 0:00:03]} 75. Rxg5 {[%clk 0:00:24]} 1-0


[Site "https://www.chess.com"]

[Event "Titled Tuesday Blitz June 6 Late 2023"]
[White "ArtemDyachuk"]
[Black "Maksimovic, Bojan"]
[BlackFideId "14408120"]
[WhiteElo "2562"]
[BlackElo "2457"]
[Result "0-1"]
[Round "6"]
[TimeControl "180+2"]
[Date "2023.06.07"]
[WhiteClock "0:00:01"]
[BlackClock "0:00:22"]
[Board "41"]

1. e4 {[%clk 0:03:00]}  c5 {[%clk 0:02:59]} 2. Nf3 {[%clk 0:03:00]}  e6 {[%clk 0:03:00]} 3. d4 {[%clk 0:02:59]}  cxd4 {[%clk 0:03:00]} 4. Nxd4 {[%clk 0:03:00]}  a6 {[%clk 0:03:00]} 5. c4 {[%clk 0:02:59]}  Nf6 {[%clk 0:02:59]} 6. Nc3 {[%clk 0:02:59]}  Qc7 {[%clk 0:03:00]} 7. Be2 {[%clk 0:02:54]}  Bb4 {[%clk 0:02:59]} 8. Qd3 {[%clk 0:02:53]}  Nc6 {[%clk 0:02:51]} 9. O-O {[%clk 0:02:53]}  O-O {[%clk 0:02:46]} 10. Rd1 {[%clk 0:02:34]}  b6 {[%clk 0:02:14]} 11. Bg5 {[%clk 0:02:15]}  Nxd4 {[%clk 0:01:47]} 12. Qxd4 {[%clk 0:02:10]}  Bc5 {[%clk 0:01:45]} 13. Qd3 {[%clk 0:02:08]}  Qe5 {[%clk 0:01:45]} 14. Bh4 {[%clk 0:01:57]}  Bb7 {[%clk 0:01:23]} 15. Bg3 {[%clk 0:01:54]}  Qg5 {[%clk 0:01:23]} 16. e5 {[%clk 0:01:29]}  Nh5 {[%clk 0:01:21]} 17. Bxh5 {[%clk 0:01:18]}  Qxh5 {[%clk 0:01:22]} 18. Qxd7 {[%clk 0:01:17]}  Rab8 {[%clk 0:01:22]} 19. a3 {[%clk 0:01:03]}  a5 {[%clk 0:01:19]} 20. Na4 {[%clk 0:00:49]}  Qg4 {[%clk 0:01:15]} 21. Nxc5 {[%clk 0:00:47]}  bxc5 {[%clk 0:01:16]} 22. Rac1 {[%clk 0:00:41]}  h5 {[%clk 0:01:11]} 23. h3 {[%clk 0:00:41]}  Qg5 {[%clk 0:01:11]} 24. h4 {[%clk 0:00:40]}  Qg4 {[%clk 0:01:10]} 25. Qe7 {[%clk 0:00:26]}  Ba8 {[%clk 0:00:56]} 26. Qg5 {[%clk 0:00:10]}  Qxg5 {[%clk 0:00:50]} 27. hxg5 {[%clk 0:00:11]}  Rxb2 {[%clk 0:00:50]} 28. Rd7 {[%clk 0:00:08]}  Kh7 {[%clk 0:00:50]} 29. Rc7 {[%clk 0:00:07]}  Kg6 {[%clk 0:00:49]} 30. Rxc5 {[%clk 0:00:07]}  Rh8 {[%clk 0:00:49]} 31. Rxa5 {[%clk 0:00:06]}  Bc6 {[%clk 0:00:46]} 32. Rc5 {[%clk 0:00:06]}  Be4 {[%clk 0:00:43]} 33. Rc7 {[%clk 0:00:05]}  h4 {[%clk 0:00:42]} 34. Bh2 {[%clk 0:00:04]}  h3 {[%clk 0:00:36]} 35. g3 {[%clk 0:00:03]}  Rhb8 {[%clk 0:00:36]} 36. g4 {[%clk 0:00:01]}  Rb1 {[%clk 0:00:35]} 37. Bf4 {[%clk 0:00:01]}  Rxc1+ {[%clk 0:00:34]} 38. Bxc1 {[%clk 0:00:02]}  Rb1 {[%clk 0:00:33]} 39. Kh2 {[%clk 0:00:03]}  Rxc1 {[%clk 0:00:32]} 40. Kxh3 {[%clk 0:00:04]}  Rc3+ {[%clk 0:00:31]} 41. Kh2 {[%clk 0:00:03]}  Rf3 {[%clk 0:00:29]} 42. Kg1 {[%clk 0:00:03]}  Kxg5 {[%clk 0:00:28]} 43. c5 {[%clk 0:00:03]}  Rh3 {[%clk 0:00:25]} 44. Kf1 {[%clk 0:00:02]}  Rxa3 {[%clk 0:00:23]} 45. Rxf7 {[%clk 0:00:01]}  Bf3 {[%clk 0:00:22]} 46. Ke1 {[%clk 0:00:01]}  Rd3 {[%clk 0:00:22]} 47. Rxg7+ {[%clk 0:00:01]}  Kh6 {[%clk 0:00:22]} 0-1


[Site "https://www.chess.com"]

[Event "Titled Tuesday Blitz June 6 Late 2023"]
[White "benny_aizenberg"]
[Black "Ozates, Tuna"]
[BlackFideId "6354521"]
[WhiteElo "2716"]
[BlackElo "2151"]
[Result "1-0"]
[Round "6"]
[TimeControl "180+2"]
[Date "2023.06.07"]
[WhiteClock "0:01:34"]
[BlackClock "0:00:27"]
[Board "45"]

1. g4 {[%clk 0:03:00]}  d5 {[%clk 0:02:43]} 2. g5 {[%clk 0:03:01]}  e5 {[%clk 0:02:23]} 3. h4 {[%clk 0:02:59]}  Nc6 {[%clk 0:02:17]} 4. Bg2 {[%clk 0:02:58]}  Be6 {[%clk 0:02:17]} 5. d3 {[%clk 0:02:58]}  Qd7 {[%clk 0:02:17]} 6. Nc3 {[%clk 0:02:57]}  O-O-O {[%clk 0:02:17]} 7. e4 {[%clk 0:02:56]}  d4 {[%clk 0:02:17]} 8. Nce2 {[%clk 0:02:55]}  h6 {[%clk 0:02:16]} 9. f4 {[%clk 0:02:53]}  Bg4 {[%clk 0:02:13]} 10. fxe5 {[%clk 0:02:41]}  Nxe5 {[%clk 0:02:09]} 11. Bf4 {[%clk 0:02:41]}  Bb4+ {[%clk 0:02:04]} 12. Kf2 {[%clk 0:02:40]}  Bd6 {[%clk 0:02:03]} 13. Nf3 {[%clk 0:02:29]}  Bxf3 {[%clk 0:01:36]} 14. Bxf3 {[%clk 0:02:30]}  Nxf3 {[%clk 0:01:36]} 15. Kxf3 {[%clk 0:02:31]}  Ne7 {[%clk 0:01:36]} 16. Qg1 {[%clk 0:02:25]}  Ng6 {[%clk 0:01:35]} 17. Qg4 {[%clk 0:02:24]}  Qxg4+ {[%clk 0:01:17]} 18. Kxg4 {[%clk 0:02:24]}  Nxf4 {[%clk 0:01:11]} 19. Nxf4 {[%clk 0:02:24]}  Bxf4 {[%clk 0:01:10]} 20. Kxf4 {[%clk 0:02:24]}  hxg5+ {[%clk 0:01:11]} 21. hxg5 {[%clk 0:02:23]}  Kd7 {[%clk 0:01:08]} 22. Ke5 {[%clk 0:02:20]}  c5 {[%clk 0:01:07]} 23. Raf1 {[%clk 0:02:17]}  Ke7 {[%clk 0:01:06]} 24. Rxh8 {[%clk 0:02:13]}  Rxh8 {[%clk 0:01:05]} 25. Kd5 {[%clk 0:02:06]}  b6 {[%clk 0:01:01]} 26. Kc6 {[%clk 0:01:56]}  Rh2 {[%clk 0:01:00]} 27. Rc1 {[%clk 0:01:56]}  Rg2 {[%clk 0:00:59]} 28. Kb7 {[%clk 0:01:56]}  Rxg5 {[%clk 0:00:59]} 29. Kxa7 {[%clk 0:01:56]}  Rg6 {[%clk 0:01:00]} 30. c3 {[%clk 0:01:49]}  dxc3 {[%clk 0:00:58]} 31. bxc3 {[%clk 0:01:47]}  Rd6 {[%clk 0:00:59]} 32. e5 {[%clk 0:01:45]}  Rxd3 {[%clk 0:00:59]} 33. Kxb6 {[%clk 0:01:44]}  c4 {[%clk 0:00:57]} 34. a4 {[%clk 0:01:44]}  Rd2 {[%clk 0:00:53]} 35. Ra1 {[%clk 0:01:43]}  Rb2+ {[%clk 0:00:53]} 36. Kc5 {[%clk 0:01:43]}  Ke6 {[%clk 0:00:51]} 37. a5 {[%clk 0:01:41]}  g5 {[%clk 0:00:50]} 38. a6 {[%clk 0:01:40]}  Rb8 {[%clk 0:00:51]} 39. a7 {[%clk 0:01:40]}  Ra8 {[%clk 0:00:51]} 40. Kd4 {[%clk 0:01:39]}  Kf5 {[%clk 0:00:47]} 41. Rf1+ {[%clk 0:01:39]}  Kg6 {[%clk 0:00:47]} 42. Rf6+ {[%clk 0:01:38]}  Kg7 {[%clk 0:00:41]} 43. Ra6 {[%clk 0:01:38]}  f5 {[%clk 0:00:35]} 44. exf6+ {[%clk 0:01:36]}  Kg6 {[%clk 0:00:36]} 45. Ke4 {[%clk 0:01:37]}  Re8+ {[%clk 0:00:33]} 46. Kf3 {[%clk 0:01:36]}  Ra8 {[%clk 0:00:33]} 47. Kg4 {[%clk 0:01:35]}  Kh6 {[%clk 0:00:28]} 48. Kf5 {[%clk 0:01:35]}  Kh5 {[%clk 0:00:27]} 49. Ra1 {[%clk 0:01:34]} 1-0


[Site "https://www.chess.com"]

[Event "Titled Tuesday Blitz June 6 Late 2023"]
[White "Gokerkan, Cem Kaan"]
[Black "WindWhistler11"]
[WhiteFideId "6336760"]
[WhiteElo "2365"]
[BlackElo "2542"]
[Result "0-1"]
[Round "6"]
[TimeControl "180+2"]
[Date "2023.06.07"]
[WhiteClock "0:00:01"]
[BlackClock "0:00:43"]
[Board "48"]

1. d4 {[%clk 0:03:00]}  Nf6 {[%clk 0:02:48]} 2. Nf3 {[%clk 0:03:01]}  e6 {[%clk 0:02:49]} 3. Bf4 {[%clk 0:03:01]}  c5 {[%clk 0:02:50]} 4. e3 {[%clk 0:03:01]}  cxd4 {[%clk 0:02:50]} 5. exd4 {[%clk 0:03:02]}  b6 {[%clk 0:02:51]} 6. Nbd2 {[%clk 0:03:01]}  Bb7 {[%clk 0:02:51]} 7. Bd3 {[%clk 0:03:01]}  d6 {[%clk 0:02:52]} 8. O-O {[%clk 0:03:02]}  Nbd7 {[%clk 0:02:52]} 9. Re1 {[%clk 0:03:02]}  Be7 {[%clk 0:02:53]} 10. c3 {[%clk 0:03:01]}  O-O {[%clk 0:02:52]} 11. Qe2 {[%clk 0:03:00]}  Re8 {[%clk 0:02:51]} 12. Rad1 {[%clk 0:03:00]}  Nf8 {[%clk 0:02:51]} 13. h3 {[%clk 0:02:55]}  a6 {[%clk 0:02:51]} 14. Nc4 {[%clk 0:02:35]}  b5 {[%clk 0:02:49]} 15. Ne3 {[%clk 0:02:35]}  Ng6 {[%clk 0:02:49]} 16. Bh2 {[%clk 0:02:35]}  Rc8 {[%clk 0:02:43]} 17. a4 {[%clk 0:02:31]}  bxa4 {[%clk 0:02:41]} 18. Ra1 {[%clk 0:02:31]}  a5 {[%clk 0:02:41]} 19. Rxa4 {[%clk 0:02:30]}  Bc6 {[%clk 0:02:40]} 20. Ra2 {[%clk 0:02:29]}  Qb6 {[%clk 0:02:40]} 21. Nc4 {[%clk 0:02:26]}  Bxf3 {[%clk 0:02:40]} 22. Qxf3 {[%clk 0:02:17]}  Qb3 {[%clk 0:02:35]} 23. Ra3 {[%clk 0:02:15]}  Qb8 {[%clk 0:02:33]} 24. Rxa5 {[%clk 0:02:13]}  Rxc4 {[%clk 0:02:26]} 25. Bxc4 {[%clk 0:02:12]}  Qxb2 {[%clk 0:02:27]} 26. Ra8 {[%clk 0:01:49]}  Rxa8 {[%clk 0:02:15]} 27. Qxa8+ {[%clk 0:01:50]}  Nf8 {[%clk 0:02:14]} 28. Qf3 {[%clk 0:01:44]}  h6 {[%clk 0:01:56]} 29. Bf1 {[%clk 0:01:28]}  d5 {[%clk 0:01:52]} 30. Qd3 {[%clk 0:01:06]}  Ne4 {[%clk 0:01:51]} 31. Re2 {[%clk 0:00:51]}  Qa1 {[%clk 0:01:46]} 32. c4 {[%clk 0:00:48]}  Bg5 {[%clk 0:01:36]} 33. cxd5 {[%clk 0:00:47]}  exd5 {[%clk 0:01:37]} 34. Be5 {[%clk 0:00:28]}  Ne6 {[%clk 0:01:32]} 35. g3 {[%clk 0:00:26]}  f6 {[%clk 0:01:30]} 36. Bb8 {[%clk 0:00:17]}  Nxd4 {[%clk 0:01:29]} 37. Rxe4 {[%clk 0:00:13]}  dxe4 {[%clk 0:01:28]} 38. Qxe4 {[%clk 0:00:13]}  f5 {[%clk 0:01:06]} 39. Qd5+ {[%clk 0:00:10]}  Kh7 {[%clk 0:01:06]} 40. Kg2 {[%clk 0:00:07]}  Bf6 {[%clk 0:00:57]} 41. Bd3 {[%clk 0:00:04]}  g6 {[%clk 0:00:45]} 42. Qf7+ {[%clk 0:00:04]}  Bg7 {[%clk 0:00:44]} 43. Be5 {[%clk 0:00:04]}  Qa8+ {[%clk 0:00:44]} 44. Kf1 {[%clk 0:00:01]}  Qh1# {[%clk 0:00:43]} 0-1


[Site "https://www.chess.com"]

[Event "Titled Tuesday Blitz June 6 Late 2023"]
[White "Machidon, Cristi"]
[Black "Do Valle Cardoso, Lucas"]
[WhiteFideId "13904590"]
[BlackFideId "2163144"]
[WhiteElo "2355"]
[BlackElo "2364"]
[Result "1-0"]
[Round "6"]
[TimeControl "180+2"]
[Date "2023.06.07"]
[WhiteClock "0:01:21"]
[BlackClock "0:00:11"]
[Board "49"]

1. e4 {[%clk 0:03:00]}  c5 {[%clk 0:02:54]} 2. Nf3 {[%clk 0:03:00]}  d6 {[%clk 0:02:53]} 3. d4 {[%clk 0:02:59]}  cxd4 {[%clk 0:02:54]} 4. Nxd4 {[%clk 0:02:59]}  Nf6 {[%clk 0:02:55]} 5. Nc3 {[%clk 0:02:58]}  a6 {[%clk 0:02:55]} 6. f3 {[%clk 0:02:57]}  e5 {[%clk 0:02:52]} 7. Nb3 {[%clk 0:02:57]}  Be6 {[%clk 0:02:52]} 8. Be3 {[%clk 0:02:57]}  h5 {[%clk 0:02:52]} 9. Qd2 {[%clk 0:02:57]}  Nbd7 {[%clk 0:02:50]} 10. O-O-O {[%clk 0:02:58]}  b6 {[%clk 0:02:48]} 11. Nd5 {[%clk 0:02:57]}  Bxd5 {[%clk 0:02:46]} 12. exd5 {[%clk 0:02:58]}  Be7 {[%clk 0:02:46]} 13. Kb1 {[%clk 0:02:56]}  Qc7 {[%clk 0:02:44]} 14. Be2 {[%clk 0:02:52]}  Nc5 {[%clk 0:02:41]} 15. h4 {[%clk 0:02:42]}  g6 {[%clk 0:02:12]} 16. g4 {[%clk 0:02:42]}  hxg4 {[%clk 0:02:11]} 17. fxg4 {[%clk 0:02:43]}  Nfe4 {[%clk 0:02:11]} 18. Qe1 {[%clk 0:02:43]}  f5 {[%clk 0:01:38]} 19. h5 {[%clk 0:02:09]}  f4 {[%clk 0:01:23]} 20. Bxc5 {[%clk 0:02:08]}  Nxc5 {[%clk 0:01:18]} 21. hxg6 {[%clk 0:02:06]}  O-O-O {[%clk 0:01:12]} 22. Rh7 {[%clk 0:01:51]}  Kb8 {[%clk 0:00:57]} 23. Nxc5 {[%clk 0:01:50]}  bxc5 {[%clk 0:00:53]} 24. Bxa6 {[%clk 0:01:49]}  Rhg8 {[%clk 0:00:30]} 25. Rd3 {[%clk 0:01:35]}  c4 {[%clk 0:00:25]} 26. Bxc4 {[%clk 0:01:29]}  Rxg6 {[%clk 0:00:18]} 27. Rb3+ {[%clk 0:01:27]}  Kc8 {[%clk 0:00:18]} 28. Bb5 {[%clk 0:01:25]}  Rxg4 {[%clk 0:00:11]} 29. Rc3 {[%clk 0:01:23]}  Rdg8 {[%clk 0:00:10]} 30. Rxc7+ {[%clk 0:01:21]}  Kb8 {[%clk 0:00:11]} 1-0


[Site "https://www.chess.com"]

[Event "Titled Tuesday Blitz June 6 Late 2023"]
[White "Matinian, Nikita"]
[Black "D`Arruda, Ricardo D."]
[WhiteFideId "24129100"]
[BlackFideId "100692"]
[WhiteElo "2422"]
[BlackElo "2534"]
[Result "0-1"]
[Round "6"]
[TimeControl "180+2"]
[Date "2023.06.07"]
[WhiteClock "0:00:06"]
[BlackClock "0:00:17"]
[Board "51"]

1. e4 {[%clk 0:03:00]}  c5 {[%clk 0:02:54]} 2. Nf3 {[%clk 0:03:00]}  Nc6 {[%clk 0:02:53]} 3. Bb5 {[%clk 0:02:59]}  g6 {[%clk 0:02:52]} 4. O-O {[%clk 0:02:58]}  Bg7 {[%clk 0:02:51]} 5. d3 {[%clk 0:02:59]}  Nf6 {[%clk 0:02:50]} 6. Nc3 {[%clk 0:02:58]}  O-O {[%clk 0:02:49]} 7. Bxc6 {[%clk 0:02:57]}  bxc6 {[%clk 0:02:50]} 8. e5 {[%clk 0:02:56]}  Nd5 {[%clk 0:02:46]} 9. Ne4 {[%clk 0:02:55]}  d6 {[%clk 0:02:43]} 10. exd6 {[%clk 0:02:50]}  exd6 {[%clk 0:02:44]} 11. h3 {[%clk 0:02:49]}  f5 {[%clk 0:02:33]} 12. Ned2 {[%clk 0:02:41]}  h6 {[%clk 0:02:29]} 13. Nc4 {[%clk 0:02:40]}  Be6 {[%clk 0:02:25]} 14. Re1 {[%clk 0:02:40]}  Qd7 {[%clk 0:02:23]} 15. c3 {[%clk 0:02:34]}  Rae8 {[%clk 0:02:15]} 16. Bd2 {[%clk 0:02:31]}  g5 {[%clk 0:02:12]} 17. Nh2 {[%clk 0:01:56]}  f4 {[%clk 0:02:02]} 18. Qf3 {[%clk 0:01:50]}  Bf5 {[%clk 0:01:52]} 19. Rxe8 {[%clk 0:01:45]}  Rxe8 {[%clk 0:01:52]} 20. Re1 {[%clk 0:01:45]}  Rxe1+ {[%clk 0:01:50]} 21. Bxe1 {[%clk 0:01:46]}  Qe6 {[%clk 0:01:39]} 22. Kf1 {[%clk 0:01:40]}  Nb6 {[%clk 0:01:33]} 23. b3 {[%clk 0:01:22]}  Nxc4 {[%clk 0:01:07]} 24. bxc4 {[%clk 0:01:23]}  d5 {[%clk 0:01:07]} 25. cxd5 {[%clk 0:01:21]}  Qxd5 {[%clk 0:01:00]} 26. Qxd5+ {[%clk 0:01:21]}  cxd5 {[%clk 0:01:01]} 27. Ke2 {[%clk 0:01:21]}  c4 {[%clk 0:01:01]} 28. dxc4 {[%clk 0:01:20]}  dxc4 {[%clk 0:01:02]} 29. Nf3 {[%clk 0:01:19]}  Bd3+ {[%clk 0:01:01]} 30. Kd2 {[%clk 0:01:03]}  Bf1 {[%clk 0:01:01]} 31. g3 {[%clk 0:01:01]}  fxg3 {[%clk 0:00:56]} 32. fxg3 {[%clk 0:01:01]}  Bxh3 {[%clk 0:00:56]} 33. Bf2 {[%clk 0:01:02]}  a6 {[%clk 0:00:55]} 34. Bd4 {[%clk 0:01:01]}  Be6 {[%clk 0:00:52]} 35. Ke3 {[%clk 0:00:59]}  Bf8 {[%clk 0:00:49]} 36. Ne5 {[%clk 0:00:58]}  Bd6 {[%clk 0:00:47]} 37. Ke4 {[%clk 0:00:56]}  h5 {[%clk 0:00:47]} 38. Bf2 {[%clk 0:00:56]}  Kg7 {[%clk 0:00:46]} 39. Nf3 {[%clk 0:00:50]}  Kg6 {[%clk 0:00:43]} 40. Nd4 {[%clk 0:00:50]}  Bf7 {[%clk 0:00:41]} 41. a4 {[%clk 0:00:47]}  Be7 {[%clk 0:00:41]} 42. a5 {[%clk 0:00:45]}  Bd8 {[%clk 0:00:40]} 43. Nc6 {[%clk 0:00:45]}  Bf6 {[%clk 0:00:40]} 44. Nb4 {[%clk 0:00:41]}  Bxc3 {[%clk 0:00:38]} 45. Nxa6 {[%clk 0:00:41]}  Bxa5 {[%clk 0:00:38]} 46. Nc5 {[%clk 0:00:39]}  Bb6 {[%clk 0:00:37]} 47. Kd4 {[%clk 0:00:29]}  Kf5 {[%clk 0:00:36]} 48. Be1 {[%clk 0:00:22]}  Kg4 {[%clk 0:00:34]} 49. Bb4 {[%clk 0:00:11]}  Kxg3 {[%clk 0:00:32]} 50. Ke5 {[%clk 0:00:12]}  c3 {[%clk 0:00:26]} 51. Ne4+ {[%clk 0:00:11]}  Kg2 {[%clk 0:00:25]} 52. Bxc3 {[%clk 0:00:09]}  g4 {[%clk 0:00:24]} 53. Kf4 {[%clk 0:00:10]}  Be6 {[%clk 0:00:23]} 54. Be5 {[%clk 0:00:07]}  h4 {[%clk 0:00:23]} 55. Ng5 {[%clk 0:00:07]}  Bd7 {[%clk 0:00:21]} 56. Ne4 {[%clk 0:00:05]}  h3 {[%clk 0:00:20]} 57. Kg5 {[%clk 0:00:05]}  h2 {[%clk 0:00:18]} 58. Bxh2 {[%clk 0:00:06]}  Kxh2 {[%clk 0:00:18]} 59. Nf6 {[%clk 0:00:06]}  g3 {[%clk 0:00:17]} 0-1


[Site "https://www.chess.com"]

[Event "Titled Tuesday Blitz June 6 Late 2023"]
[White "laziestwin"]
[Black "Pinheiro, Iung Alicio de O."]
[BlackFideId "2104350"]
[WhiteElo "2669"]
[BlackElo "2283"]
[Result "0-1"]
[Round "6"]
[TimeControl "180+2"]
[Date "2023.06.07"]
[WhiteClock "0:00:01"]
[BlackClock "0:00:02"]
[Board "57"]

1. d4 {[%clk 0:03:00]}  Nf6 {[%clk 0:02:58]} 2. c4 {[%clk 0:03:01]}  Nc6 {[%clk 0:02:57]} 3. Nf3 {[%clk 0:03:00]}  e6 {[%clk 0:02:56]} 4. Nc3 {[%clk 0:03:00]}  Bb4 {[%clk 0:02:55]} 5. Qc2 {[%clk 0:03:01]}  d6 {[%clk 0:02:54]} 6. Bd2 {[%clk 0:02:52]}  a5 {[%clk 0:02:51]} 7. a3 {[%clk 0:02:52]}  Bxc3 {[%clk 0:02:51]} 8. Bxc3 {[%clk 0:02:53]}  a4 {[%clk 0:02:50]} 9. g3 {[%clk 0:02:52]}  Qe7 {[%clk 0:02:50]} 10. Bg2 {[%clk 0:02:52]}  e5 {[%clk 0:02:48]} 11. O-O {[%clk 0:02:51]}  O-O {[%clk 0:02:39]} 12. d5 {[%clk 0:02:48]}  Nb8 {[%clk 0:02:36]} 13. e4 {[%clk 0:02:41]}  Nbd7 {[%clk 0:02:32]} 14. Ne1 {[%clk 0:02:37]}  Nc5 {[%clk 0:02:32]} 15. h3 {[%clk 0:02:31]}  Nh5 {[%clk 0:01:56]} 16. Qe2 {[%clk 0:02:21]}  g6 {[%clk 0:01:53]} 17. Nd3 {[%clk 0:02:14]}  b6 {[%clk 0:01:35]} 18. Kh2 {[%clk 0:02:06]}  Ba6 {[%clk 0:01:03]} 19. Nb4 {[%clk 0:02:03]}  Bc8 {[%clk 0:01:00]} 20. f4 {[%clk 0:02:01]}  f6 {[%clk 0:00:47]} 21. Nc6 {[%clk 0:01:57]}  Qe8 {[%clk 0:00:36]} 22. fxe5 {[%clk 0:01:55]}  fxe5 {[%clk 0:00:33]} 23. Rxf8+ {[%clk 0:01:55]}  Qxf8 {[%clk 0:00:34]} 24. Rf1 {[%clk 0:01:55]}  Qe8 {[%clk 0:00:34]} 25. Bd2 {[%clk 0:01:36]}  Bd7 {[%clk 0:00:34]} 26. Bh6 {[%clk 0:00:43]}  Bxc6 {[%clk 0:00:32]} 27. Rf8+ {[%clk 0:00:44]}  Qxf8 {[%clk 0:00:31]} 28. Bxf8 {[%clk 0:00:45]}  Rxf8 {[%clk 0:00:29]} 29. dxc6 {[%clk 0:00:45]}  Kg7 {[%clk 0:00:29]} 30. Qg4 {[%clk 0:00:17]}  Nf6 {[%clk 0:00:19]} 31. Qe2 {[%clk 0:00:17]}  Ng8 {[%clk 0:00:16]} 32. Bf3 {[%clk 0:00:09]}  Ne7 {[%clk 0:00:15]} 33. Qe3 {[%clk 0:00:04]}  Nxc6 {[%clk 0:00:14]} 34. h4 {[%clk 0:00:05]}  Nd4 {[%clk 0:00:14]} 35. Bd1 {[%clk 0:00:05]}  h6 {[%clk 0:00:13]} 36. h5 {[%clk 0:00:05]}  g5 {[%clk 0:00:13]} 37. Bg4 {[%clk 0:00:05]}  Rf1 {[%clk 0:00:11]} 38. Bh3 {[%clk 0:00:04]}  Rf3 {[%clk 0:00:10]} 39. Qe1 {[%clk 0:00:02]}  Nd3 {[%clk 0:00:09]} 40. Qd1 {[%clk 0:00:01]}  Rf2+ {[%clk 0:00:08]} 41. Bg2 {[%clk 0:00:02]}  Nxb2 {[%clk 0:00:02]} 42. Qc1 {[%clk 0:00:01]}  Rc2 {[%clk 0:00:02]} 43. Qe3 {[%clk 0:00:01]}  Nd1 {[%clk 0:00:02]} 0-1


[Site "https://www.chess.com"]